Cogmind - Beta 13 @@@ ROGUE MODE // 2024.05.31 @ 14:04:54 Player: Lunace Result: Destroyed by Y-45 Defender with Heavy Assault Rifle Performance ------------- Evolutions (1) 500 Regions Visited (2) 400 Robots Destroyed (17) 85 Value Destroyed (285) 285 Prototype IDs (0) 0 Alien Tech Used (0) 0 Bonus (0) 0 TOTAL SCORE: 1270 Bonus ------- None Cogmind --------- Core Integrity 0/400 Matter 245/300 Energy 80/100 System Corruption 0% Temperature Cool (30) Movement Core (100) Ox1 Location -9/Materials Parts ------- > --- POWER (1) -------- (None) > --- PROPULSION (4) --- (None) > --- UTILITY (2) ------ Small Storage Unit > --- WEAPON (2) ------- Mini Grenade Launcher > --- INVENTORY (8) ---- Light Ion Engine Medium Storage Unit Visual Processing Unit Signal Interpreter Mini Grenade Launcher Plasma Cutter Peak State ------------ > --- POWER ------------ Light Ion Engine > --- PROPULSION ------- Improved Hover Unit Improved Hover Unit > --- UTILITY ---------- Small Storage Unit Seismic Detector > --- WEAPON ----------- Mini Grenade Launcher Flail > --- INVENTORY -------- Light Ion Engine Medium Storage Unit Signal Interpreter Mini Grenade Launcher Mini Grenade Launcher Mini Grenade Launcher Plasma Cutter [Rating: 12] Favorites ----------- Power Light Ion Engine Engine Light Ion Engine Propulsion Improved Hover Unit Treads Light Treads Hover Unit Improved Hover Unit Utility Small Storage Unit Device Seismic Detector Storage Small Storage Unit Weapon Mini Grenade Launcher Ballistic Gun Assault Rifle Launcher Mini Grenade Launcher Impact Weapon Flail Build | -11 -10 -9 ------- Run | Yrd Mat Mat Slots Evolved 2 | . . 2 Power . | . . . Propulsion 2 | . . 2 Utility . | . . . Weapon . | . . . Parts Attached 17 | 7 5 5 Power 3 | 1 1 1 Engine 3 | 1 1 1 Core . | . . . Reactor . | . . . Propulsion 6 | 2 2 2 Treads 2 | 2 . . Leg . | . . . Wheel . | . . . Hover 4 | . 2 2 Flight . | . . . Utility 2 | 2 . . Device 1 | 1 . . Storage 1 | 1 . . Processor . | . . . Hackware . | . . . Protection . | . . . Artifact . | . . . Weapon 6 | 2 2 2 Energy Gun . | . . . Energy Cannon . | . . . Ballistic Gun 2 | 2 . . Ballistic Cannon . | . . . Launcher 3 | . 1 2 Special Weapon . | . . . Impact Weapon 1 | . 1 . Slashing Weapon . | . . . Piercing Weapon . | . . . Special Melee Weapon . | . . . Unidentified Prototypes . | . . . Parts Lost 8 | . . 8 Power 2 | . . 2 Propulsion 2 | . . 2 Utility 1 | . . 1 Weapon 3 | . . 3 Highest Loss Streak 7 | . . 7 To Critical Strikes . | . . . Average Slot Usage (%) 79 | . 100 70 Engine 10 | . 14 9 Hover 19 | . 24 17 Device 11 | . 14 10 Storage 11 | . 14 11 Ballistic Gun 1 | . 3 . Launcher 11 | . 11 11 Impact Weapon 11 | . 12 10 Naked Turns . | . . . Heaviest Build 14 | 14 14 12 Greatest Support 40 | 40 40 14 Greatest Overweight (x) 1 | . 1 1 Average Overweight (x) . | . . . Largest Inventory Capacity 8 | 8 8 8 Average Capacity 7 | 7 8 8 Most Carried 8 | 1 5 8 Average Carried 5 | . 3 7 Final Capacity 8 | 8 8 8 Final Carried 6 | 1 5 6 Class Distribution -------------------- 100% | Mutant Dominant Class ---------------- Mutant | -10/Materials Mutant | -9/Materials Resources | -11 -10 -9 ----------- Run | Yrd Mat Mat Matter Collected 410 | 195 89 126 Remotely . | . . . Salvage Created 324 | 15 13 296 Parts 14 | 4 2 8 Haulers Intercepted . | . . . Recyclers Shooed 1 | 1 . . Parts Field Recycled . | . . . Retrieved Matter . | . . . Parts Self-Destructed . | . . . Prevented . | . . . Kills | -11 -10 -9 ------- Run | Yrd Mat Mat Combat Hostiles Destroyed 12 | . 3 9 AOE 10 | . 3 7 Classes Destroyed 7 | 1 1 5 Worker 1 | . . 1 Tunneler 2 | 1 . 1 Recycler 1 | . . 1 Watcher 1 | . . 1 Swarmer 8 | . 3 5 Grunt 2 | . . 2 Sentry 2 | . . 2 Best Kill Streak 4 | 1 3 4 Combat Bots Only 4 | . 3 4 Max Kills in Single Turn 3 | 1 2 3 Gunslinging . | . . . Exploded 3 | . 2 3 Melee . | . . . Uniques/NPCs Destroyed . | . . . Combat | -11 -10 -9 -------- Run | Yrd Mat Mat Hostile Shots Fired 79 | . 3 76 Missed 27 | . 3 24 Damage Taken 899 | . . 899 Core 407 | . . 407 Absorbed by Shields . | . . . Regen/Repaired (Parts) 15 | . . 15 Core Remaining (%) 100 | 100 100 . Volleys Fired 13 | 5 2 6 Largest 2 | 2 1 2 Hottest 60 | 40 30 60 Shots Fired 20 | 10 2 8 Gun 10 | 10 . . Cannon . | . . . Launcher 10 | . 2 8 Special . | . . . Kinetic 10 | 10 . . Thermal . | . . . Explosive 10 | . 2 8 Electromagnetic . | . . . Robot Hit Streak 8 | 4 1 8 Robot Miss Streak 1 | 1 1 . Penetration Max . | . . . Secondary Targets . | . . . Shots Hit Robots 39 | 7 1 31 Core Hits 11 | 2 1 8 Critical Kills . | . . . Critical Parts Destroyed 2 | . . 2 Critical Strikes 2 | . . 2 Smash 2 | . . 2 Melee Attacks 37 | . 2 35 Impact 37 | . 2 35 Slashing . | . . . Piercing . | . . . Sneak Attacks 3 | . . 3 Combat Hostiles . | . . . Follow-up Attacks . | . . . Damage Inflicted 1561 | 62 192 1307 Guns 62 | 62 . . Cannons . | . . . Explosions 700 | . 192 508 Melee 799 | . . 799 Ramming . | . . . Kinetic 62 | 62 . . Thermal . | . . . Explosive 700 | . 192 508 Electromagnetic . | . . . Impact 799 | . . 799 Slashing . | . . . Piercing . | . . . Highest Corruption . | . . . Average Corruption . | . . . Corruption Purged . | . . . Corruption Blocked . | . . . Overload Shots . | . . . Overflow Damage 243 | . 28 215 Projectiles . | . . . Explosions 55 | . 28 27 Melee 188 | . . 188 Knockbacks 1 | . . 1 Impact 1 | . . 1 Kinetic . | . . . Secondary . | . . . Self-Inflicted Damage 197 | . . 197 Shots 5 | . . 5 Rammed . | . . . Targets Rammed . | . . . Kicked . | . . . Crushed . | . . . Highest Temperature 30 | . . 30 Average Temperature 17 | . . 17 Received Heat Transfer 258 | . . 258 Siege Activations . | . . . Robots Corrupted . | . . . Combat Hostiles . | . . . Parts Fried 4 | . . 4 Impact Corruptions 9 | . . 9 Robots Melted . | . . . Combat Hostiles . | . . . Parts Melted . | . . . Heat Transferred . | . . . Parts Sabotaged . | . . . Parts Stolen . | . . . Parts Stripped . | . . . Power Chain Reactions . | . . . Alert | -11 -10 -9 ------- Run | Yrd Mat Mat Peak Influence 332 | 5 127 332 Initial 59 | . 3 59 Average 105 | 2 40 160 Maximum Alert Level 1 | . . 1 Low Security (%) 73 | 100 100 54 Level 1 26 | . . 45 Level 2 . | . . . Level 3 . | . . . Level 4 . | . . . Level 5 . | . . . High Security . | . . . Max Security . | . . . Squads Dispatched 2 | . 1 1 Investigation . | . . . Extermination . | . . . Reinforcement 2 | . 1 1 Assault . | . . . Garrison . | . . . Intercept . | . . . Searches Triggered . | . . . Construction Impeded . | . . . Haulers Reinforced . | . . . Active Scanning Responses . | . . . Cargo Convoy Interrupts . | . . . Stealth | -11 -10 -9 --------- Run | Yrd Mat Mat Distress Signals . | . . . Communications Jammed . | . . . Distress Signals . | . . . Times Spotted 24 | . 5 19 Peak Tracking Total 10 | . 3 10 Tactical Retreats 1 | . . 1 Traps | -11 -10 -9 ------- Run | Yrd Mat Mat Traps Triggered . | . . . Indirectly . | . . . Trap Hack Attempts . | . . . Triggered . | . . . Disarmed . | . . . Reprogrammed . | . . . Reused . | . . . Traps Extracted . | . . . Installed . | . . . Triggered . | . . . Machines | -11 -10 -9 ---------- Run | Yrd Mat Mat Machines Disabled 1 | . . 1 Max in Single Turn 1 | . . 1 Machines Repaired . | . . . Machines Dismantled . | . . . Machines Sabotaged . | . . . Overloaded Fab Kills . | . . . Hacking | -11 -10 -9 --------- Run | Yrd Mat Mat Machines Accessed 8 | . 3 5 Terminals 6 | . 2 4 Fabricators . | . . . Repair Stations 1 | . . 1 Recycling Units 1 | . 1 . Scanalyzers . | . . . Garrison Access . | . . . Total Hacks 25 | . 10 15 Successful 13 | . 6 7 Failed 12 | . 4 8 Catastrophic 2 | . . 2 Database Lockouts . | . . . Manual 20 | . 8 12 Terminals 19 | . 6 13 Fabricators . | . . . Repair Stations 2 | . . 2 Recycling Units 4 | . 4 . Scanalyzers . | . . . Garrison Access . | . . . Terminal Hacks 3 | . 1 2 Record 1 | . . 1 Robot Analysis 1 | . . 1 Locate Traps 1 | . 1 . Fabricator Hacks . | . . . Repair Station Hacks 2 | . . 2 Scan Component 1 | . . 1 Repair 1 | . . 1 Recycling Unit Hacks . | . . . Scanalyzer . | . . . Garrison Access Hacks . | . . . Unauthorized Hacks 8 | . 5 3 Terminals 6 | . 3 3 Botnet 4 | . 2 2 Disrupt 1 | . . 1 Operators 1 | . 1 . Fabricators . | . . . Repair Stations . | . . . Recycling Units 2 | . 2 . Monitor 1 | . 1 . Recyclers 1 | . 1 . Scanalyzers . | . . . Garrison Access . | . . . Data Cores Recovered . | . . . Used . | . . . Hacking Detections 7 | . 3 4 Full Trace Events . | . . . Feedback Events . | . . . Feedback Blocked . | . . . Robot Schematics Acquired . | . . . Robots Built . | . . . Authchips . | . . . Time . | . . . Total Robot Build Rating . | . . . Part Schematics Acquired . | . . . Parts Built . | . . . Authchips . | . . . Time . | . . . Total Part Build Rating . | . . . Parts Repaired 1 | . . 1 Time 26 | . . 26 Parts Recycled . | . . . Recycled Matter . | . . . Retrieved Matter . | . . . Retrieved Components . | . . . Parts Scanalyzed . | . . . Part Schematics Acquired . | . . . Parts Damaged . | . . . Bothacking | -11 -10 -9 ------------ Run | Yrd Mat Mat Used RIF Installer . | . . . Robots Hacked . | . . . Non-combat . | . . . Combat . | . . . Robot Hacks Applied . | . . . Relay Couplers Released . | . . . Fabnet Peak Effective % . | . . . Robots Rewired . | . . . Allies Hacked . | . . . Hacks Repelled . | . . . Allies | -11 -10 -9 -------- Run | Yrd Mat Mat Total Allies . | . . . Largest Group . | . . . Highest-Rated Group . | . . . Highest-Rated Ally . | . . . Total Orders . | . . . Ally Attacks . | . . . Total Damage . | . . . Kills . | . . . Allies Corrupted . | . . . Allies Melted . | . . . Intel | -11 -10 -9 ------- Run | Yrd Mat Mat Robot Analysis Total 1 | . . 1 Derelict Logs Recovered . | . . . Drone Launches . | . . . Drone Recoveries . | . . . Exploration | -11 -10 -9 ------------- Run | Yrd Mat Mat Turns Passed 745 | 121 182 442 Spaces Moved 508 | 50 180 278 Core 3 | 3 . . Treads 55 | 47 8 . Legs . | . . . Wheels . | . . . Hover 450 | . 172 278 Flight . | . . . Fastest Speed 50 | 50 56 56 Average Speed 67 | 153 61 56 Slowest Speed 160 | 160 160 120 Overloaded Moves . | . . . Propulsion Burnouts . | . . . Robots Hopped . | . . . Cave-ins Triggered . | . . . Exploration Rate (%) 29 | 5 39 43 Regions Visited 2 Branch Regions . Pre-discovered Areas . | . . . Known Exits Taken . | . . . Unknown Exits Taken 2 | 1 1 . Scrap Searched . | . . . Spaces Dug 3 | . . 3 Terrain Destroyed 59 | . 15 44 Melee 3 | . . 3 Projectile . | . . . AOE 56 | . 15 41 Terrain Rammed . | . . . Walls Destroyed . | . . . Machines Disabled . | . . . Actions | -11 -10 -9 --------- Run | Yrd Mat Mat Total 831 | 82 246 503 Wait 242 | 20 49 173 Move 506 | 49 179 278 Hop . | . . . Pick Up 9 | 1 4 4 Fast Attach 15 | 7 5 3 Attach 2 | . . 2 Detach . | . . . Swap . | . . . Drop 7 | . 5 2 Fire 13 | 5 2 6 Melee 37 | . 2 35 Ram . | . . . Kick . | . . . Crush . | . . . Escape Stasis . | . . . Rewire . | . . . Trap . | . . . Miscellaneous . | . . . Route ------- -11/Scrapyard -10/Materials -9/Materials History --------- Turn | Location | Event 4 | -11/Scrapyard | Discovered new exit (range 15) 122 | -11/Scrapyard | Entered Materials 301 | -10/Materials | Discovered new exit (range 4) 304 | -10/Materials | Entered another Materials area 304 | -9/Materials | Evolved 2 slots: Propulsion x2 316 | -9/Materials | Build established: Mutant 555 | -9/Materials | Repaired Signal Interpreter 734 | -9/Materials | Core integrity fell below 50% 741 | -9/Materials | Core integrity fell below 20% 746 | -9/Materials | Destroyed by Y-45 Defender with Heavy Assault Rifle Last Messages --------------- crushing effect. 00671_ Lgt. Ion Engine fried. 00671_ Imp. Terrain Scanner fried. 00671_ T-07 Excavator destroyed. 00673_ Acquired 10 matter. 00722_ U-05 Engineer builds a Wall. 00728_ Imp. Hover Unit destroyed. 00731_ Seismic Detector destroyed. 00735_ G-34 Mercenary destroyed. 00735_ S-10 Pest destroyed. 00737_ G-34 Mercenary destroyed. 00737_ Imp. Hover Unit destroyed. 00737_ Flail destroyed. 00741_ Critical hit (Burn: +37). 00743_ Lgt. Ion Engine destroyed. 00743_ Destroyed Lgt. Ion Engine. 00743_ Mni. Grenade Launcher destroyed. 00743_ Destroyed Mni. Grenade Launcher. 00743_ Mni. Grenade Launcher destroyed. 00746_ The unstable cave ceiling collapses. Map ----- +----------------------------------------------------+ | ?????????????????????????????????????????????????? | | ?????????????????????????????????????????????????? | | ?????????????????????????????????????????????????? | | ?????????????????????????????????????????????????? | | ?????????????????????????????????????????????????? | | ?????????????????????????????????????????????????? | | ?????????????????????????????????????????????????? | | ?????????????????????????????????????????????????? | | ?????????????????????????????????????????????????? | | ?????????????????????????????????????????????????? | | ????????????????????????? ?????????????????????? | | ????????????????????????? #????????#???????????? | | ????????????????????????? #??????? ##??????????? | | ????????????????????????# #??????? ##?????????? | | ????????????????????????# #??????? ??????????? | | ???????????????????????## ##?????/ = ??????????? | | ???????????????????????# #????? ???????????? | | ???????????????????????# #????? ????????????? | | ???????????????????????# #?####+#####????????? | | ???????????????????????# #?# ?????????? | | ??????????????????????## ### #????????? | | ??????????????????????# ## """ #????????? | | ??????????????????+???# ## """"" #????????? | | ??????????????????# ??# # """"" #????????? | | ??????????????????# # #Y ## """"" #????????? | | ??????????????????# @ # """ #????????? | | ??????????????????# Y # #????????? | | ??????????????????# a # #????????? | | ??????????????????# * % #####+####????????? | | ??????????????????# [ = #???# #???????????? | | ??????????????????# #???# #???????????? | | ??????????????????## #???# #???????????? | | ???????????????????# # ^ #???# #?????????### | | ???????????????????## # #???# #?????????# | | ????????????????????#?##########???# #?????????# | | ???????????????????????????????????# #?????? ## " | | ???????????????????????????????????# ##### # " | | ???????????????????????????????????# # | | ???????????????????????????????????# ##### T + | | ????????????????????????????########+##???? # ! | | ?????????????????????????#### #????? # | | ?????????????????????????#""" T #??????# ### | | ?????????????????????????#"R #??????# | | ?????????????????????????#""" """ """ #??????# | | ?????????????????????????#### """ """ #??????# | | ????????????????????????????# """ """ #?????? | | ????????????????????????????# #????? | | ????????????????????????????# % #???? % | | ???????????????????##############+######## * | | ???????????????????# % | +----------------------------------------------------+ Best States ------------- Heat Dissipation 28 Energy Generation 10 Energy Capacity 250 Matter Stores 300 Matter Capacity 300 Sight Range 16 Terrain Scan Density 10 Evasion (%) 53 Recoil Reduction 2 Item Schematics ----------------- None Robot Schematics ------------------ None Fabricated ------------ Nothing Alien Tech Used ----------------- None Achievements -------------- None Challenges ------------ None Game ------ Seed EtherialSupersonicHumpback Manual? 0 Play Time 00:10:21 Cumulative 217.0 hours Start 2024.05.31 @ 13:56:32 End 2024.05.31 @ 14:04:54 Sessions 1 Manual Loads 0 Difficulty Rogue Special Mode None Game No. 210 Rogue 205 Adventurer 5 Explorer 0 Win Type - Total 3 Types 2/0/0/1/0/0/0/0/0 Lore% 58 Gallery% 78 Achievement% 58 Wizard Run 0 Options --------- Layout 2 ASCII 0 Keyboard 0 Movement Mouse Keybinds 0 Fullscreen 1 Font 24/Terminus Map View 50x44 Zoom Use 0% Tactical HUD 1 Map Filters NONE Filters NONE Steam 1 RUN: 1d80bdce-2fb1-47c6-a6e6-234c06ed4575